[Event "Open Nuevo Centro. Jornada 1"]
[Site "Chess.com"]
[Date "2020.06.19"]
[Round "2"]
[White "Granero Roca, Antonio"]
[Black "Castellano L�pez, Javier"]
[Result "1-0"]
[WhiteElo "2523"]
[BlackElo "1747"]
[TimeControl "180+2"]
[EndTime "10:53:53 PDT"]
[Termination "Victoria de Somtor por jaque mate"]

1. Nf3 {[%clk 0:03:01.9]} 1... Nf6 {[%clk 0:03:00.1]} 2. g3 {[%clk 0:03:02.2]}
2... d5 {[%clk 0:02:59.8]} 3. Bg2 {[%clk 0:03:03.1]} 3... Bg4 {[%clk 0:03:00.2]}
4. O-O {[%clk 0:03:02.8]} 4... e6 {[%clk 0:03:01]} 5. d4 {[%clk 0:03:03.5]} 5...
Be7 {[%clk 0:02:57.2]} 6. c3 {[%clk 0:03:03.7]} 6... Nbd7 {[%clk 0:02:57.7]} 7.
Bf4 {[%clk 0:03:04.4]} 7... O-O {[%clk 0:02:55.4]} 8. Nbd2 {[%clk 0:03:05.1]}
8... c6 {[%clk 0:02:53]} 9. h3 {[%clk 0:03:05.2]} 9... Bh5 {[%clk 0:02:52.7]}
10. g4 {[%clk 0:03:05.8]} 10... Bg6 {[%clk 0:02:53.3]} 11. Qb3 {[%clk 0:03:07]}
11... Qb6 {[%clk 0:02:52.8]} 12. Rfe1 {[%clk 0:03:07.6]} 12... h6 {[%clk
0:02:40.4]} 13. Ne5 {[%clk 0:03:06.4]} 13... Nxe5 {[%clk 0:02:14.9]} 14. Bxe5
{[%clk 0:03:06]} 14... Rfd8 {[%clk 0:02:10.7]} 15. e3 {[%clk 0:03:02.2]} 15...
Nd7 {[%clk 0:02:04.4]} 16. Bg3 {[%clk 0:03:02.2]} 16... Rac8 {[%clk 0:01:56.8]}
17. c4 {[%clk 0:03:00.5]} 17... Qxb3 {[%clk 0:01:53.6]} 18. axb3 {[%clk
0:03:00.1]} 18... Bb4 {[%clk 0:01:48.2]} 19. Red1 {[%clk 0:02:51]} 19... Bc2
{[%clk 0:01:47.4]} 20. Rdc1 {[%clk 0:02:51.6]} 20... Bxd2 {[%clk 0:01:46.6]} 21.
Rxc2 {[%clk 0:02:51.8]} 21... Bb4 {[%clk 0:01:34.7]} 22. Rxa7 {[%clk 0:02:51.4]}
22... b6 {[%clk 0:01:02.1]} 23. cxd5 {[%clk 0:02:40.9]} 23... exd5 {[%clk
0:01:00.8]} 24. Bxd5 {[%clk 0:02:27.5]} 24... cxd5 {[%clk 0:01:01.4]} 25. Rxc8
{[%clk 0:02:27.8]} 25... Rxc8 {[%clk 0:01:03.3]} 26. Rxd7 {[%clk 0:02:28.3]}
26... Rc1+ {[%clk 0:01:04.7]} 27. Kg2 {[%clk 0:02:28.2]} 27... Rb1 {[%clk
0:01:04.3]} 28. Rxd5 {[%clk 0:02:28.8]} 28... Rxb2 {[%clk 0:01:04.8]} 29. Rb5
{[%clk 0:02:29.4]} 29... Ba5 {[%clk 0:00:58]} 30. Bd6 {[%clk 0:02:18.5]} 30...
Be1 {[%clk 0:00:56]} 31. Bg3 {[%clk 0:02:16.1]} 31... Ba5 {[%clk 0:00:56.7]} 32.
Kf3 {[%clk 0:02:16.9]} 32... Rc2 {[%clk 0:00:54.8]} 33. Ke4 {[%clk 0:02:08.7]}
33... Be1 {[%clk 0:00:49.2]} 34. Rxb6 {[%clk 0:01:48.5]} 34... Bxf2 {[%clk
0:00:49.7]} 35. Bxf2 {[%clk 0:01:48.8]} 35... Rxf2 {[%clk 0:00:51.6]} 36. b4
{[%clk 0:01:50]} 36... Kf8 {[%clk 0:00:50.6]} 37. b5 {[%clk 0:01:48.2]} 37...
Ke7 {[%clk 0:00:50.8]} 38. Rb7+ {[%clk 0:01:48.2]} 38... Kd6 {[%clk 0:00:51.8]}
39. h4 {[%clk 0:01:44.7]} 39... g6 {[%clk 0:00:51.7]} 40. h5 {[%clk 0:01:44.9]}
40... f5+ {[%clk 0:00:50.5]} 41. gxf5 {[%clk 0:01:44.9]} 41... gxf5+ {[%clk
0:00:52.4]} 42. Kd3 {[%clk 0:01:44.7]} 42... Rh2 {[%clk 0:00:53.2]} 43. Rf7
{[%clk 0:01:39.9]} 43... Rxh5 {[%clk 0:00:40.7]} 44. b6 {[%clk 0:01:40.7]} 44...
Rh1 {[%clk 0:00:25.1]} 45. Rxf5 {[%clk 0:01:40.9]} 45... Kc6 {[%clk 0:00:26.6]}
46. Rf6+ {[%clk 0:01:35.6]} 46... Kb7 {[%clk 0:00:27.5]} 47. Ke4 {[%clk
0:01:36.6]} 47... h5 {[%clk 0:00:27.9]} 48. Ke5 {[%clk 0:01:37.1]} 48... h4
{[%clk 0:00:29]} 49. e4 {[%clk 0:01:37.9]} 49... h3 {[%clk 0:00:30]} 50. Rh6
{[%clk 0:01:39.3]} 50... h2 {[%clk 0:00:27.9]} 51. d5 {[%clk 0:01:40.2]} 51...
Kc8 {[%clk 0:00:25.7]} 52. Rh7 {[%clk 0:01:39]} 52... Kb8 {[%clk 0:00:23.2]} 53.
d6 {[%clk 0:01:33.1]} 53... Kc8 {[%clk 0:00:21.5]} 54. b7+ {[%clk 0:01:21.2]}
54... Kb8 {[%clk 0:00:22.3]} 55. d7 {[%clk 0:01:21.9]} 55... Rd1 {[%clk
0:00:23.7]} 56. Rxh2 {[%clk 0:01:17.1]} 56... Rxd7 {[%clk 0:00:20.7]} 57. Rb2
{[%clk 0:01:17.5]} 57... Re7+ {[%clk 0:00:20]} 58. Kd5 {[%clk 0:01:18.4]} 58...
Rd7+ {[%clk 0:00:21]} 59. Ke6 {[%clk 0:01:19.3]} 59... Rc7 {[%clk 0:00:21.8]}
60. e5 {[%clk 0:01:20]} 60... Rc6+ {[%clk 0:00:22.8]} 61. Kf7 {[%clk 0:01:18.7]}
61... Rc7+ {[%clk 0:00:23.9]} 62. Kf6 {[%clk 0:01:18.9]} 62... Rc6+ {[%clk
0:00:25.1]} 63. e6 {[%clk 0:01:20]} 63... Rc1 {[%clk 0:00:25.3]} 64. Rb5 {[%clk
0:01:15.6]} 64... Rf1+ {[%clk 0:00:24.5]} 65. Rf5 {[%clk 0:01:12.9]} 65... Re1
{[%clk 0:00:22.1]} 66. e7 {[%clk 0:01:13.3]} 66... Kxb7 {[%clk 0:00:19.9]} 67.
Re5 {[%clk 0:01:13.6]} 67... Rf1+ {[%clk 0:00:21.2]} 68. Ke6 {[%clk 0:01:14.4]}
68... Rc1 {[%clk 0:00:14.1]} 69. e8=Q {[%clk 0:01:13.2]} 69... Rc6+ {[%clk
0:00:16]} 70. Kf5 {[%clk 0:01:12.6]} 70... Rc7 {[%clk 0:00:15.9]} 71. Qb5+
{[%clk 0:01:09.2]} 71... Ka7 {[%clk 0:00:15.9]} 72. Qa5+ {[%clk 0:01:09.8]}
72... Kb7 {[%clk 0:00:17]} 73. Rb5+ {[%clk 0:01:08.9]} 73... Kc6 {[%clk
0:00:16.4]} 74. Rb6+ {[%clk 0:01:05.1]} 74... Kd7 {[%clk 0:00:15.2]} 75. Qd5+
{[%clk 0:01:05]} 75... Kc8 {[%clk 0:00:15.8]} 76. Qe6+ {[%clk 0:01:05.5]} 76...
Kd8 {[%clk 0:00:15.9]} 77. Rb8+ {[%clk 0:01:06.1]} 77... Rc8 {[%clk 0:00:02.6]}
78. Rxc8# {[%clk 0:01:05.1]} 1

[Event "Open Nuevo Centro. Jornada 1"]
[Site "Chess.com"]
[Date "2020.06.19"]
[Round "2"]
[White "Romero Barkouk, Rayan "]
[Black "Morata Briones, Carlos"]
[Result "1-0"]
[WhiteElo "1102"]
[BlackElo "543"]
[TimeControl "180+2"]
[EndTime "10:54:41 PDT"]
[Termination "Victoria de rayan66 por jaque mate"]

1. d4 {[%clk 0:03:01.9]} 1... d5 {[%clk 0:02:59.6]} 2. Nf3 {[%clk 0:03:02.8]}
2... Bf5 {[%clk 0:02:58.4]} 3. Nc3 {[%clk 0:02:59.1]} 3... e6 {[%clk 0:02:58.2]}
4. Bg5 {[%clk 0:02:54.4]} 4... f6 {[%clk 0:02:56.8]} 5. Bf4 {[%clk 0:02:54.6]}
5... Nc6 {[%clk 0:02:51.5]} 6. e3 {[%clk 0:02:54.9]} 6... Bd6 {[%clk 0:02:47.2]}
7. Bxd6 {[%clk 0:02:54.9]} 7... Qxd6 {[%clk 0:02:47.2]} 8. Bb5 {[%clk
0:02:55.7]} 8... a6 {[%clk 0:02:45.7]} 9. Bxc6+ {[%clk 0:02:55.7]} 9... Qxc6
{[%clk 0:02:45.4]} 10. O-O {[%clk 0:02:56.5]} 10... Nh6 {[%clk 0:02:41.4]} 11.
Qe2 {[%clk 0:02:52.3]} 11... O-O {[%clk 0:02:40.5]} 12. a3 {[%clk 0:02:38.2]}
12... Be4 {[%clk 0:02:23.8]} 13. Nxe4 {[%clk 0:02:37.8]} 13... dxe4 {[%clk
0:02:24.3]} 14. Nd2 {[%clk 0:02:35.4]} 14... e5 {[%clk 0:02:12.6]} 15. dxe5
{[%clk 0:02:33.3]} 15... fxe5 {[%clk 0:02:12.6]} 16. Qc4+ {[%clk 0:02:33.7]}
16... Qxc4 {[%clk 0:02:12.4]} 17. Nxc4 {[%clk 0:02:34.7]} 17... Rf7 {[%clk
0:02:11.9]} 18. Nxe5 {[%clk 0:02:33.1]} 18... Rf5 {[%clk 0:02:07.8]} 19. Nd7
{[%clk 0:02:26.8]} 19... Rd8 {[%clk 0:02:05.2]} 20. Rad1 {[%clk 0:02:26.2]}
20... Re8 {[%clk 0:01:53.9]} 21. f4 {[%clk 0:02:08.5]} 21... Ng4 {[%clk
0:01:48.2]} 22. Rfe1 {[%clk 0:01:46.4]} 22... Rh5 {[%clk 0:01:32.8]} 23. h3
{[%clk 0:01:41.3]} 23... Nf6 {[%clk 0:01:29.6]} 24. Nxf6+ {[%clk 0:01:41.3]}
24... gxf6 {[%clk 0:01:30.1]} 25. Kh2 {[%clk 0:01:39.9]} 25... Re6 {[%clk
0:01:23.9]} 26. g4 {[%clk 0:01:37]} 26... Rc5 {[%clk 0:01:21.5]} 27. Rd8+ {[%clk
0:01:35.8]} 27... Kg7 {[%clk 0:01:20.6]} 28. Rd7+ {[%clk 0:01:35.1]} 28... Kh6
{[%clk 0:01:18]} 29. f5 {[%clk 0:01:31.8]} 29... Rd6 {[%clk 0:01:16.3]} 30. Rxd6
{[%clk 0:01:29.7]} 30... cxd6 {[%clk 0:01:16.7]} 31. c3 {[%clk 0:01:30.2]} 31...
b5 {[%clk 0:01:16.4]} 32. Rg1 {[%clk 0:01:27.5]} 32... d5 {[%clk 0:01:15.1]} 33.
h4 {[%clk 0:01:26.4]} 33... Kg7 {[%clk 0:01:08.1]} 34. g5 {[%clk 0:01:24.7]}
34... fxg5 {[%clk 0:01:07.8]} 35. Rxg5+ {[%clk 0:01:25.1]} 35... Kf6 {[%clk
0:01:08.1]} 36. Rh5 {[%clk 0:01:23.7]} 36... Kg7 {[%clk 0:01:07.4]} 37. Rg5+
{[%clk 0:01:22]} 37... Kf6 {[%clk 0:01:07.4]} 38. Rg8 {[%clk 0:01:16.9]} 38...
Kf7 {[%clk 0:01:05.3]} 39. Ra8 {[%clk 0:01:16.1]} 39... Kf6 {[%clk 0:01:04]} 40.
Rxa6+ {[%clk 0:01:14.9]} 40... Kxf5 {[%clk 0:01:04]} 41. Rh6 {[%clk 0:01:06.6]}
41... Rc7 {[%clk 0:01:04]} 42. Rh5+ {[%clk 0:01:05.8]} 42... Kg4 {[%clk
0:01:04.6]} 43. Rg5+ {[%clk 0:01:03.5]} 43... Kxh4 {[%clk 0:01:04.2]} 44. Rxd5
{[%clk 0:01:00.6]} 44... Rb7 {[%clk 0:01:01.7]} 45. Rd4 {[%clk 0:01:00.1]} 45...
Re7 {[%clk 0:00:59.6]} 46. Rb4 {[%clk 0:01:00.4]} 46... Rb7 {[%clk 0:00:56]} 47.
Rxe4+ {[%clk 0:01:00.2]} 47... Kg5 {[%clk 0:00:56.2]} 48. Re5+ {[%clk
0:00:59.2]} 48... Kf6 {[%clk 0:00:56.5]} 49. Rc5 {[%clk 0:00:58.5]} 49... Ke6
{[%clk 0:00:56.6]} 50. c4 {[%clk 0:00:58.9]} 50... Kd6 {[%clk 0:00:53.3]} 51.
Rxb5 {[%clk 0:00:46.7]} 51... Rc7 {[%clk 0:00:49.3]} 52. Rb6+ {[%clk 0:00:46]}
52... Kc5 {[%clk 0:00:49]} 53. Rb4 {[%clk 0:00:41.1]} 53... Rc6 {[%clk
0:00:47.3]} 54. b3 {[%clk 0:00:38.1]} 54... Rh6+ {[%clk 0:00:46.6]} 55. Kg2
{[%clk 0:00:36.6]} 55... Rg6+ {[%clk 0:00:46.6]} 56. Kf2 {[%clk 0:00:37.6]}
56... Rf6+ {[%clk 0:00:46.9]} 57. Ke2 {[%clk 0:00:38.8]} 57... h5 {[%clk
0:00:45.2]} 58. Rb5+ {[%clk 0:00:39.3]} 58... Kc6 {[%clk 0:00:43.9]} 59. Rxh5
{[%clk 0:00:40.2]} 59... Kb6 {[%clk 0:00:41.6]} 60. c5+ {[%clk 0:00:40.5]} 60...
Kc6 {[%clk 0:00:41.8]} 61. b4 {[%clk 0:00:41.4]} 61... Kb5 {[%clk 0:00:39.8]}
62. a4+ {[%clk 0:00:40.2]} 62... Kxa4 {[%clk 0:00:39.7]} 63. Kd3 {[%clk
0:00:41.4]} 63... Kxb4 {[%clk 0:00:39.9]} 64. Kd4 {[%clk 0:00:40.4]} 64... Kb5
{[%clk 0:00:40.1]} 65. e4 {[%clk 0:00:39.3]} 65... Kc6 {[%clk 0:00:40.3]} 66. e5
{[%clk 0:00:39.4]} 66... Rf4+ {[%clk 0:00:40.6]} 67. Kd3 {[%clk 0:00:39.1]}
67... Rf3+ {[%clk 0:00:40.3]} 68. Ke4 {[%clk 0:00:36]} 68... Rf7 {[%clk
0:00:39.2]} 69. e6 {[%clk 0:00:36.7]} 69... Re7 {[%clk 0:00:39]} 70. Ke5 {[%clk
0:00:35]} 70... Kxc5 {[%clk 0:00:39.2]} 71. Kf6+ {[%clk 0:00:35.5]} 71... Kd6
{[%clk 0:00:34]} 72. Re5 {[%clk 0:00:35.5]} 72... Ra7 {[%clk 0:00:28]} 73. e7
{[%clk 0:00:33.7]} 73... Ra6 {[%clk 0:00:17.7]} 74. e8=Q {[%clk 0:00:32.3]}
74... Kc7+ {[%clk 0:00:18]} 75. Re6 {[%clk 0:00:31.1]} 75... Rxe6+ {[%clk
0:00:17.7]} 76. Qxe6 {[%clk 0:00:30.9]} 76... Kb7 {[%clk 0:00:18.2]} 77. Ke5
{[%clk 0:00:29.5]} 77... Kc7 {[%clk 0:00:17.9]} 78. Kd5 {[%clk 0:00:29.7]} 78...
Kd8 {[%clk 0:00:17.9]} 79. Qf7 {[%clk 0:00:28.1]} 79... Kc8 {[%clk 0:00:17.8]}
80. Kc6 {[%clk 0:00:28.9]} 80... Kd8 {[%clk 0:00:17.3]} 81. Qd7# {[%clk
0:00:29.7]} 1

[Event "Open Nuevo Centro. Jornada 1"]
[Site "Chess.com"]
[Date "2020.06.19"]
[Round "3"]
[White "Serradilla Revert, Rodrigo"]
[Black "Maestre Soler, Sergio"]
[Result "0-1"]
[WhiteElo "647"]
[BlackElo "963"]
[TimeControl "180+2"]
[EndTime "10:57:55 PDT"]
[Termination "Victoria de Sergiete2011 por jaque mate"]

1. d4 {[%clk 0:03:00.4]} 1... e6 {[%clk 0:03:00.2]} 2. e4 {[%clk 0:02:59.4]}
2... Nf6 {[%clk 0:02:59.6]} 3. Nc3 {[%clk 0:02:59.2]} 3... Bb4 {[%clk
0:02:56.1]} 4. a3 {[%clk 0:02:58.2]} 4... Bxc3+ {[%clk 0:02:56.9]} 5. bxc3
{[%clk 0:02:59]} 5... Nc6 {[%clk 0:02:57.7]} 6. Nf3 {[%clk 0:02:59.3]} 6... O-O
{[%clk 0:02:58.3]} 7. Bc4 {[%clk 0:02:56.3]} 7... d5 {[%clk 0:02:59.1]} 8. exd5
{[%clk 0:02:55.2]} 8... exd5 {[%clk 0:02:59.9]} 9. Bb3 {[%clk 0:02:49.5]} 9...
Bg4 {[%clk 0:03:00.3]} 10. h3 {[%clk 0:02:47.7]} 10... Bxf3 {[%clk 0:03:00.2]}
11. gxf3 {[%clk 0:02:48.3]} 11... h6 {[%clk 0:02:57.5]} 12. c4 {[%clk
0:02:40.7]} 12... dxc4 {[%clk 0:02:58]} 13. Bxc4 {[%clk 0:02:38]} 13... Re8+
{[%clk 0:02:58]} 14. Kf1 {[%clk 0:02:32.1]} 14... Nxd4 {[%clk 0:02:54.6]} 15.
Bd3 {[%clk 0:02:29.1]} 15... Qd5 {[%clk 0:02:37.5]} 16. c4 {[%clk 0:02:06.4]}
16... Qxf3 {[%clk 0:02:31.1]} 17. Qd2 {[%clk 0:01:57]} 17... Qxh1# {[%clk
0:02:31]} 0

[Event "Open Nuevo Centro. Jornada 1"]
[Site "Chess.com"]
[Date "2020.06.19"]
[Round "3"]
[White "Gimeno Higueras, Roberto"]
[Black "Cin� Asensio, Luca "]
[Result "1-0"]
[WhiteElo "2058"]
[BlackElo "398"]
[TimeControl "180+2"]
[EndTime "10:58:14 PDT"]
[Termination "Victoria de Chicogrande2 por jaque mate"]

1. e4 {[%clk 0:03:01.9]} 1... e5 {[%clk 0:02:58.8]} 2. Nf3 {[%clk 0:03:02.7]}
2... Nc6 {[%clk 0:02:58.8]} 3. Bb5 {[%clk 0:03:03.4]} 3... d6 {[%clk 0:02:58.3]}
4. O-O {[%clk 0:03:04.1]} 4... Be7 {[%clk 0:02:56.3]} 5. d4 {[%clk 0:03:04.9]}
5... exd4 {[%clk 0:02:49.9]} 6. Nxd4 {[%clk 0:03:05.3]} 6... a6 {[%clk
0:02:40.4]} 7. Bxc6+ {[%clk 0:03:05.3]} 7... bxc6 {[%clk 0:02:39.3]} 8. Nxc6
{[%clk 0:03:06.4]} 8... Qd7 {[%clk 0:02:36.7]} 9. Nxe7 {[%clk 0:03:06.1]} 9...
Qxe7 {[%clk 0:02:36.3]} 10. Nc3 {[%clk 0:03:06]} 10... Nf6 {[%clk 0:02:35.5]}
11. Bg5 {[%clk 0:03:06.5]} 11... O-O {[%clk 0:02:35.3]} 12. Nd5 {[%clk 0:03:07]}
12... Qe5 {[%clk 0:02:34.4]} 13. Nxf6+ {[%clk 0:03:02.2]} 13... gxf6 {[%clk
0:02:24.8]} 14. Bh6 {[%clk 0:03:00.8]} 14... Re8 {[%clk 0:02:22.7]} 15. Re1
{[%clk 0:02:40.7]} 15... Qe6 {[%clk 0:02:06.3]} 16. Re3 {[%clk 0:02:37.8]} 16...
f5 {[%clk 0:02:06.1]} 17. Rg3+ {[%clk 0:02:37.5]} 17... Kh8 {[%clk 0:02:05.7]}
18. Qh5 {[%clk 0:02:32.6]} 18... Qe5 {[%clk 0:02:02.1]} 19. Qxf7 {[%clk
0:02:25.2]} 19... Re7 {[%clk 0:01:52.2]} 20. Qg8# {[%clk 0:02:25.8]} 1

[Event "Open Nuevo Centro. Jornada 1"]
[Site "Chess.com"]
[Date "2020.06.19"]
[Round "3"]
[White "Montesinos Diaz, Luis"]
[Black "Sanchez Saez, Francisco"]
[Result "0-1"]
[WhiteElo "1835"]
[BlackElo "2277"]
[TimeControl "180+2"]
[EndTime "10:58:31 PDT"]
[Termination "Victoria de Pacman1995 por jaque mate"]

1. d4 {[%clk 0:02:53.2]} 1... g6 {[%clk 0:02:59.6]} 2. Nf3 {[%clk 0:02:54.1]}
2... Bg7 {[%clk 0:02:58.7]} 3. c3 {[%clk 0:02:51.2]} 3... Nf6 {[%clk 0:02:59.4]}
4. Bg5 {[%clk 0:02:51.6]} 4... O-O {[%clk 0:03:00]} 5. Nbd2 {[%clk 0:02:51]}
5... d5 {[%clk 0:02:59]} 6. h4 {[%clk 0:02:48.4]} 6... h5 {[%clk 0:02:57.2]} 7.
Qc2 {[%clk 0:02:44.7]} 7... c6 {[%clk 0:02:54.5]} 8. e4 {[%clk 0:02:43.4]} 8...
dxe4 {[%clk 0:02:56.4]} 9. Nxe4 {[%clk 0:02:44.2]} 9... Bf5 {[%clk 0:02:57.6]}
10. Nxf6+ {[%clk 0:02:44.9]} 10... exf6 {[%clk 0:02:59.5]} 11. Qb3 {[%clk
0:02:39.1]} 11... fxg5 {[%clk 0:02:59.8]} 12. Qxb7 {[%clk 0:02:39.8]} 12... Nd7
{[%clk 0:02:51.6]} 13. hxg5 {[%clk 0:02:38.7]} 13... Re8+ {[%clk 0:02:52]} 14.
Kd1 {[%clk 0:02:37.9]} 14... Rb8 {[%clk 0:02:51.6]} 15. Qxc6 {[%clk 0:02:27.8]}
15... Rxb2 {[%clk 0:02:52.2]} 16. Bc4 {[%clk 0:02:18.7]} 16... Rxf2 {[%clk
0:02:34.7]} 17. Re1 {[%clk 0:02:09.7]} 17... Bc2+ {[%clk 0:02:21.8]} 18. Kc1
{[%clk 0:02:07.1]} 18... Rxe1+ {[%clk 0:02:18.2]} 19. Nxe1 {[%clk 0:02:06.9]}
19... Qxg5+ {[%clk 0:02:19.3]} 20. Kb2 {[%clk 0:02:07.8]} 20... Be4+ {[%clk
0:02:19.3]} 21. Ka3 {[%clk 0:02:02.6]} 21... Bxc6 {[%clk 0:02:19]} 22. Nd3
{[%clk 0:02:02.9]} 22... Qa5+ {[%clk 0:02:16.9]} 23. Kb3 {[%clk 0:02:03.4]}
23... Qa4# {[%clk 0:02:17.6]} 0

[Event "Open Nuevo Centro. Jornada 1"]
[Site "Chess.com"]
[Date "2020.06.19"]
[Round "3"]
[White "Rodriguez Rodriguez, Joan David "]
[Black "Ferrando Lacruz, Nicol�s "]
[Result "1-0"]
[WhiteElo "1629"]
[BlackElo "1155"]
[TimeControl "180+2"]
[EndTime "10:58:47 PDT"]
[Termination "Victoria de Not_Jr_chess por jaque mate"]

1. d4 {[%clk 0:03:01.3]} 1... g6 {[%clk 0:02:58.5]} 2. c4 {[%clk 0:03:02.2]}
2... Nf6 {[%clk 0:02:57.8]} 3. Nc3 {[%clk 0:03:03.5]} 3... Bg7 {[%clk
0:02:58.3]} 4. e4 {[%clk 0:03:04.7]} 4... d6 {[%clk 0:02:59.2]} 5. Nf3 {[%clk
0:03:06.1]} 5... O-O {[%clk 0:03:00]} 6. Be2 {[%clk 0:03:07.6]} 6... e5 {[%clk
0:03:00.6]} 7. dxe5 {[%clk 0:03:09.5]} 7... dxe5 {[%clk 0:03:01.3]} 8. Qxd8
{[%clk 0:03:11.4]} 8... Rxd8 {[%clk 0:03:02.2]} 9. Bg5 {[%clk 0:03:13]} 9... Re8
{[%clk 0:03:02.2]} 10. O-O {[%clk 0:03:14]} 10... Bg4 {[%clk 0:03:01.4]} 11.
Bxf6 {[%clk 0:03:05.4]} 11... Bxf6 {[%clk 0:03:01]} 12. Nd5 {[%clk 0:03:07]}
12... Bg7 {[%clk 0:02:51]} 13. Nxc7 {[%clk 0:03:05]} 13... Bxf3 {[%clk
0:02:41.1]} 14. Bxf3 {[%clk 0:03:05.6]} 14... Nd7 {[%clk 0:02:37.8]} 15. Rad1
{[%clk 0:03:02.9]} 15... Nb6 {[%clk 0:02:30.3]} 16. c5 {[%clk 0:02:58.8]} 16...
Red8 {[%clk 0:02:30.2]} 17. cxb6 {[%clk 0:02:50]} 17... Rac8 {[%clk 0:02:20.2]}
18. Rxd8+ {[%clk 0:02:46.8]} 18... Rxd8 {[%clk 0:02:18.8]} 19. bxa7 {[%clk
0:02:47.8]} 19... Bf6 {[%clk 0:02:02.3]} 20. a8=Q {[%clk 0:02:47.2]} 20... Rxa8
{[%clk 0:02:02.5]} 21. Nxa8 {[%clk 0:02:48.9]} 21... b6 {[%clk 0:02:03.5]} 22.
Nxb6 {[%clk 0:02:48.8]} 22... h5 {[%clk 0:02:04.8]} 23. Nd7 {[%clk 0:02:49.2]}
23... Be7 {[%clk 0:02:03.8]} 24. Rc1 {[%clk 0:02:48.4]} 24... Bc5 {[%clk
0:02:03.4]} 25. Rxc5 {[%clk 0:02:44.6]} 25... g5 {[%clk 0:02:04.6]} 26. Nxe5
{[%clk 0:02:43.9]} 26... f6 {[%clk 0:02:05.1]} 27. Bxh5 {[%clk 0:02:42.6]} 27...
fxe5 {[%clk 0:02:04.6]} 28. Rc7 {[%clk 0:02:39.9]} 28... Kf8 {[%clk 0:02:04]}
29. a4 {[%clk 0:02:40.8]} 29... g4 {[%clk 0:02:00.3]} 30. a5 {[%clk 0:02:42.7]}
30... g3 {[%clk 0:02:01]} 31. a6 {[%clk 0:02:44.6]} 31... gxh2+ {[%clk
0:02:00.8]} 32. Kxh2 {[%clk 0:02:44.9]} 32... Kg8 {[%clk 0:02:01.6]} 33. a7
{[%clk 0:02:46.8]} 33... Kh8 {[%clk 0:02:01.6]} 34. a8=Q# {[%clk 0:02:48.7]} 1

[Event "Open Nuevo Centro. Jornada 1"]
[Site "Chess.com"]
[Date "2020.06.19"]
[Round "3"]
[White "Simarro Peir�, Andr�s"]
[Black "Deusa Ballesteros, Luis Miguel"]
[Result "1-0"]
[WhiteElo "1188"]
[BlackElo "1502"]
[TimeControl "180+2"]
[EndTime "10:59:12 PDT"]
[Termination "Victoria de AndresSP24 por abandono"]

1. e4 {[%clk 0:03:01.9]} 1... d5 {[%clk 0:02:52.1]} 2. exd5 {[%clk 0:02:58.9]}
2... Nf6 {[%clk 0:02:52.6]} 3. Nc3 {[%clk 0:02:58.9]} 3... Nxd5 {[%clk
0:02:52.6]} 4. Nxd5 {[%clk 0:02:55.2]} 4... Qxd5 {[%clk 0:02:54.5]} 5. Nf3
{[%clk 0:02:48.2]} 5... Bg4 {[%clk 0:02:54.7]} 6. Be2 {[%clk 0:02:47.8]} 6... e6
{[%clk 0:02:53.9]} 7. c4 {[%clk 0:02:45.4]} 7... Qd8 {[%clk 0:02:52.7]} 8. h3
{[%clk 0:02:38.3]} 8... Bh5 {[%clk 0:02:53]} 9. Qb3 {[%clk 0:02:25.9]} 9... Qc8
{[%clk 0:02:46.6]} 10. Qb5+ {[%clk 0:02:21.6]} 10... c6 {[%clk 0:02:46.3]} 11.
Qxh5 {[%clk 0:02:20.4]} 11... Be7 {[%clk 0:02:42.7]} 12. Ne5 {[%clk 0:02:14.5]}
12... O-O {[%clk 0:02:39.7]} 13. Bd3 {[%clk 0:02:12.3]} 13... h6 {[%clk
0:02:38.6]} 14. Qg4 {[%clk 0:02:02]} 14... Bf6 {[%clk 0:02:34.3]} 15. Qe4 {[%clk
0:01:56.5]} 15... g6 {[%clk 0:02:28.7]} 16. Nxg6 {[%clk 0:01:55.9]} 16... fxg6
{[%clk 0:02:26.1]} 17. Qxg6+ {[%clk 0:01:55]} 17... Bg7 {[%clk 0:02:26.6]} 18.
Qh7+ {[%clk 0:01:49.2]} 18... Kf7 {[%clk 0:02:25.7]} 19. Bg6+ {[%clk 0:01:46.2]}
19... Kf6 {[%clk 0:02:23.6]} 20. b3 {[%clk 0:01:45.9]} 20... Nd7 {[%clk
0:02:11.4]} 21. Bb2+ {[%clk 0:01:44.2]} 21... e5 {[%clk 0:02:11.8]} 22. d4
{[%clk 0:01:40.7]} 22... Qe8 {[%clk 0:01:56.3]} 23. Bxe8 {[%clk 0:01:37.1]} 1

[Event "Open Nuevo Centro. Jornada 1"]
[Site "Chess.com"]
[Date "2020.06.19"]
[Round "3"]
[White "Pitarch Soriano, Pablo"]
[Black "Elenkov Olmo, Ivan"]
[Result "1-0"]
[WhiteElo "1079"]
[BlackElo "792"]
[TimeControl "180+2"]
[EndTime "10:59:50 PDT"]
[Termination "Victoria de PAPISOedapa por abandono"]

1. e4 {[%clk 0:03:01.9]} 1... e5 {[%clk 0:03:00.2]} 2. Nc3 {[%clk 0:03:02.9]}
2... Nf6 {[%clk 0:02:58.9]} 3. Nf3 {[%clk 0:03:04]} 3... Nc6 {[%clk 0:02:59.5]}
4. Bc4 {[%clk 0:03:05.1]} 4... h6 {[%clk 0:02:59.4]} 5. O-O {[%clk 0:03:05]}
5... Bc5 {[%clk 0:02:58]} 6. d3 {[%clk 0:03:04.2]} 6... O-O {[%clk 0:02:57.5]}
7. Be3 {[%clk 0:03:05.1]} 7... b6 {[%clk 0:02:55.8]} 8. Bxc5 {[%clk 0:03:04.1]}
8... bxc5 {[%clk 0:02:55.4]} 9. Na4 {[%clk 0:03:05.3]} 9... Bb7 {[%clk
0:02:54.7]} 10. Nxc5 {[%clk 0:03:05.7]} 10... d5 {[%clk 0:02:51.6]} 11. Nxb7
{[%clk 0:03:05.2]} 11... Qb8 {[%clk 0:02:46.6]} 12. exd5 {[%clk 0:03:06.1]}
12... Qxb7 {[%clk 0:02:43.1]} 13. dxc6 {[%clk 0:03:06.7]} 13... Qxc6 {[%clk
0:02:34.8]} 14. Nxe5 {[%clk 0:03:07.9]} 14... Qd6 {[%clk 0:02:29.5]} 15. Re1
{[%clk 0:03:04.4]} 15... Rfe8 {[%clk 0:02:27.3]} 16. d4 {[%clk 0:03:04.5]} 16...
c5 {[%clk 0:02:26.9]} 17. Bb5 {[%clk 0:03:04.7]} 17... Re7 {[%clk 0:02:26.1]}
18. Nc6 {[%clk 0:03:03]} 18... Rxe1+ {[%clk 0:02:19.7]} 19. Qxe1 {[%clk
0:03:04.9]} 19... Qf8 {[%clk 0:02:08.3]} 20. dxc5 {[%clk 0:03:03.6]} 20... Re8
{[%clk 0:02:07.3]} 21. Qd1 {[%clk 0:02:56.4]} 21... Ne4 {[%clk 0:01:49.3]} 22.
f3 {[%clk 0:02:37.5]} 22... Nxc5 {[%clk 0:01:47.5]} 23. Nxa7 {[%clk 0:02:36.3]}
23... Rd8 {[%clk 0:01:46.2]} 24. Qf1 {[%clk 0:02:29.3]} 24... Ne6 {[%clk
0:01:34.7]} 25. Nc6 {[%clk 0:02:27.5]} 25... Rd5 {[%clk 0:01:30.8]} 26. a4
{[%clk 0:02:11.9]} 26... Nc7 {[%clk 0:01:26.6]} 27. Bc4 {[%clk 0:02:08.8]} 27...
Rc5 {[%clk 0:01:21.6]} 28. Nd4 {[%clk 0:02:09.4]} 28... Ne6 {[%clk 0:01:17.4]}
29. Bxe6 {[%clk 0:02:08.5]} 29... fxe6 {[%clk 0:01:16.1]} 30. Nxe6 {[%clk
0:02:09.4]} 1